bitfinex/quotes_BTCUSD_20241117
["timestamp","ask_amount","ask_price","bid_price","bid_amount"]
[1731847236327,0.0008564,90847.0,90843.0,0.11432688]
[1731847236537,0.0008564,90847.0,90843.0,0.110079]
[1731847236755,0.0008564,90847.0,90844.0,0.00424685]
[1731847237195,0.0008564,90847.0,90843.0,0.110079]
[1731847237418,0.1008564,90847.0,90845.0,0.00424581]
[1731847237637,0.0008564,90847.0,90844.0,0.00424685]
[1731847237850,0.0008564,90847.0,90846.0,0.00424478]
[1731847238062,0.0008564,90847.0,90845.0,0.00424675]
[1731847238279,0.0248564,90849.0,90844.0,0.110078]
[1731847238491,0.22014,90851.0,90846.0,0.00424572]
[1731847238710,0.110073,90849.0,90841.0,0.110082]
[1731847238924,0.110073,90849.0,90842.0,0.00425286]
[1731847239139,0.11007,90851.0,90844.0,0.110078]
[1731847239354,0.110071,90850.0,90838.0,0.220171]
[1731847239572,0.110073,90849.0,90845.0,0.00424713]
[1731847239803,0.110074,90848.0,90842.0,0.110081]
[1731847240072,0.110074,90848.0,90837.0,0.0453]
[1731847240319,0.110072,90850.0,90843.0,0.11432604]
[1731847240528,0.110072,90850.0,90843.0,0.110079]
[1731847240742,0.110073,90849.0,90844.0,0.00424807]
[1731847240961,0.110077,90845.0,90844.0,0.00424807]
[1731847241204,0.1532172,90852.0,90835.0,0.0017126]
[1731847241430,0.220145,90849.0,90837.0,0.110086]
[1731847241651,0.220147,90848.0,90835.0,0.0017126]
[1731847241865,0.110077,90845.0,90838.0,0.11433647]
[1731847242083,0.01030158,90844.0,90838.0,0.110085]
[1731847242299,0.01030158,90843.0,90839.0,0.00424724]
[1731847242512,0.110079,90844.0,90837.0,0.110087]
[1731847242725,0.01030528,90843.0,90838.0,0.00424717]
[1731847242936,0.110079,90844.0,90838.0,0.00424717]
[1731847243146,0.01030528,90843.0,90838.0,0.00424717]
[1731847243356,0.01030528,90842.0,90838.0,0.00424717]
[1731847243573,0.110079,90844.0,90837.0,0.110086]
[1731847243574,0.01030528,90841.0,90837.0,0.110086]
[1731847243839,0.110079,90844.0,90839.0,0.00424809]
[1731847244039,0.12039083,90843.0,90838.0,0.0042481]
[1731847244256,0.01031083,90842.0,90840.0,0.00425008]
[1731847244468,0.01031083,90841.0,90837.0,0.110086]
[1731847244678,0.01031083,90840.0,90837.0,0.110086]
[1731847244902,0.11008,90843.0,90838.0,0.00424998]
[1731847245152,0.01031337,90842.0,90837.0,0.110086]
[1731847245371,0.01031337,90841.0,90838.0,0.110084]
[1731847245586,0.01031337,90840.0,90838.0,0.11433502]
[1731847245811,0.01031337,90839.0,90838.0,0.11433502]
[1731847248149,0.110077,90845.0,90838.0,0.11433502]
[1731847248369,0.01031754,90839.0,90838.0,0.11433502]
[1731847250124,0.0008564,90847.0,90838.0,0.11433502]
[1731847250125,0.0008564,90847.0,90839.0,0.220169]
[1731847250385,0.0008564,90847.0,90841.0,0.220164]
[1731847250386,0.01031856,90846.0,90841.0,0.220164]
[1731847250597,0.0008564,90847.0,90840.0,0.00425368]
[1731847250598,0.01031856,90845.0,90840.0,0.00425368]
[1731847250805,0.01031856,90844.0,90842.0,0.00425058]
[1731847251012,0.0008564,90847.0,90839.0,0.220169]
[1731847251013,0.01031856,90843.0,90840.0,0.110083]
[1731847251227,0.1109314,90847.0,90840.0,0.110083]
[1731847251228,0.01031856,90842.0,90840.0,0.110083]
[1731847251443,0.1109314,90847.0,90840.0,0.110083]
[1731847251696,0.01031859,90846.0,90840.0,0.110083]
[1731847251908,0.1109314,90847.0,90840.0,0.110083]
[1731847252120,0.01031862,90845.0,90840.0,0.110083]
[1731847252338,0.01031862,90844.0,90840.0,0.110083]
[1731847252553,0.01031862,90843.0,90840.0,0.110083]
[1731847252772,0.01031862,90842.0,90838.0,0.110085]
[1731847253001,0.110076,90846.0,90838.0,0.110085]
[1731847253002,0.01031862,90841.0,90838.0,0.110085]
[1731847253220,0.01031862,90840.0,90839.0,0.110084]
[1731847253442,0.0008564,90847.0,90839.0,0.110084]
[1731847253661,0.110077,90845.0,90839.0,0.110084]
[1731847253883,0.0008564,90847.0,90838.0,0.330258]
[1731847254099,0.0008564,90847.0,90841.0,0.110081]
[1731847255223,0.0008564,90847.0,90837.0,0.250174]
[1731847255224,0.0008564,90847.0,90842.0,0.11008]
[1731847255435,0.0008564,90847.0,90846.0,0.110076]
[1731847256563,0.0008564,90847.0,90844.0,0.110078]
[1731847257046,0.0008564,90847.0,90845.0,0.110077]
[1731847257263,0.0008564,90847.0,90843.0,0.110079]
[1731847257477,0.0008564,90847.0,90837.0,0.1094]
[1731847257478,0.0008564,90847.0,90844.0,0.110078]
[1731847258140,0.0008564,90847.0,90840.0,0.220167]
[1731847258375,0.0008564,90847.0,90843.0,0.110079]
[1731847258811,0.0008564,90847.0,90839.0,0.220169]
[1731847259031,0.0008564,90847.0,90844.0,0.110077]
[1731847260065,0.0008564,90847.0,90842.0,0.11008]
[1731847260215,0.0008564,90847.0,90843.0,0.110078]
[1731847260424,0.0008564,90847.0,90843.0,0.00425082]
[1731847260647,0.0008564,90847.0,90842.0,0.110081]
[1731847260888,0.0008564,90847.0,90843.0,0.00425082]
[1731847261110,0.0008564,90847.0,90844.0,0.220157]
[1731847261343,0.0008564,90847.0,90845.0,0.00424876]
[1731847261774,0.0008564,90847.0,90844.0,0.330235]
[1731847261976,0.0008564,90847.0,90846.0,0.00424772]
[1731847262671,0.0008564,90847.0,90843.0,0.110079]
[1731847262877,0.0008564,90847.0,90844.0,0.00407092]
[1731847263080,0.0008564,90847.0,90841.0,0.220164]
[1731847263309,0.0008564,90847.0,90844.0,0.110078]
[1731847263546,0.0008564,90847.0,90845.0,0.00407177]
[1731847265311,0.01031921,90846.0,90845.0,0.00407177]
[1731847265986,0.11007,90851.0,90845.0,0.00407177]
[1731847265987,0.09124561,90851.0,90845.0,0.00407177]
[1731847267278,0.09124561,90851.0,90842.0,0.11008]
[1731847267493,0.09124561,90851.0,90843.0,0.11415266]
[1731847268350,0.110069,90852.0,90844.0,0.110078]
[1731847269408,0.1109265,90851.0,90842.0,0.11008]
[1731847269636,0.1109265,90851.0,90840.0,0.03673028]
[1731847269637,0.0008565,90851.0,90840.0,0.03673028]
[1731847269855,0.0008565,90851.0,90841.0,0.00407463]
[1731847269856,0.110075,90848.0,90841.0,0.00407463]
[1731847270063,0.220143,90850.0,90841.0,0.00407463]
[1731847270265,0.110072,90850.0,90841.0,0.110082]
[1731847270494,0.110072,90850.0,90842.0,0.00407322]
[1731847271079,0.110072,90850.0,90842.0,0.11415422]
[1731847272123,0.110072,90849.0,90842.0,0.00407322]
[1731847272573,0.110072,90849.0,90841.0,0.110082]
[1731847272818,0.110072,90849.0,90843.0,0.00407021]
[1731847273037,0.110072,90849.0,90842.0,0.00407125]
[1731847273251,0.110071,90850.0,90844.0,0.00406918]
[1731847273493,0.110071,90850.0,90843.0,0.00407021]
[1731847273724,0.110071,90850.0,90841.0,0.110082]
[1731847273935,0.110071,90850.0,90844.0,0.00407021]
[1731847274163,0.110071,90850.0,90838.0,0.03797715]
[1731847274164,0.0008565,90851.0,90842.0,0.11008]
[1731847274608,0.1109265,90851.0,90843.0,0.00407256]
[1731847274821,0.0008565,90851.0,90843.0,0.00407256]
[1731847275087,0.110072,90850.0,90843.0,0.00407256]
[1731847275317,0.110072,90850.0,90840.0,0.110083]
[1731847275546,0.0008565,90851.0,90844.0,0.00407115]
[1731847275758,0.1109275,90851.0,90841.0,0.11415526]
[1731847276009,0.1109275,90851.0,90845.0,0.00407049]
[1731847276227,0.1109275,90851.0,90842.0,0.110081]
[1731847276479,0.1109275,90851.0,90846.0,0.00406946]
[1731847276692,0.0008565,90851.0,90839.0,0.220169]
[1731847276910,0.110072,90850.0,90839.0,0.220169]
[1731847277127,0.110072,90850.0,90841.0,0.110081]
[1731847277626,0.110072,90850.0,90842.0,0.00407322]
[1731847278066,0.01031918,90849.0,90842.0,0.00407322]
[1731847278293,0.01031918,90848.0,90842.0,0.00407322]
[1731847278521,0.110073,90849.0,90842.0,0.00407322]
[1731847278962,0.0998993,90851.0,90843.0,0.00407209]
[1731847279211,0.110072,90850.0,90843.0,0.00407209]
[1731847279446,0.0998993,90851.0,90841.0,0.110081]
[1731847279669,0.110074,90848.0,90844.0,0.00407153]
[1731847279892,0.110074,90848.0,90840.0,0.110082]
[1731847280359,0.110074,90848.0,90838.0,0.0017124]
[1731847280360,0.110072,90850.0,90842.0,0.110081]
[1731847280573,0.110072,90850.0,90843.0,0.001713]
[1731847280791,0.0008565,90851.0,90843.0,0.001713]
[1731847281035,0.0008565,90851.0,90847.0,0.110074]
[1731847281266,0.0008565,90851.0,90846.0,0.110075]
[1731847281546,0.0008565,90851.0,90849.0,0.261272]
[1731847281547,0.0008565,90850.0,90849.0,0.261272]
[1731847282019,0.0008565,90850.0,90849.0,0.57240611]
[1731847282448,0.0008565,90850.0,90849.0,0.37439059]
[1731847282702,0.0008565,90850.0,90849.0,0.409616]
[1731847282922,0.0008565,90850.0,90849.0,0.43132379]
[1731847283386,0.0943535,90865.0,90850.0,0.023]
[1731847283570,0.0943535,90865.0,90864.0,0.110054]
[1731847284041,0.0008566,90866.0,90865.0,0.110053]
[1731847284719,0.0008566,90866.0,90865.0,0.11409433]
[1731847292013,0.0008566,90866.0,90865.0,0.00404133]
[1731847292241,0.0008566,90866.0,90864.0,0.110054]
[1731847292463,0.0008566,90866.0,90865.0,0.0042239]
[1731847293619,0.0008566,90866.0,90863.0,0.110055]
[1731847293861,0.1109086,90866.0,90865.0,0.00419393]
[1731847294105,0.1109086,90866.0,90843.0,0.1496742]
[1731847294106,0.110053,90865.0,90864.0,0.00419505]
[1731847294388,0.1303566,90866.0,90851.0,0.1652137]
[1731847294840,0.1303566,90866.0,90852.0,0.00420038]
[1731847294841,0.110065,90855.0,90852.0,0.00420038]
[1731847295052,0.220125,90858.0,90852.0,0.00420038]
[1731847295304,0.11006,90860.0,90852.0,0.16941408]
[1731847295554,0.11006,90860.0,90852.0,0.110068]
[1731847295782,0.11006,90860.0,90853.0,0.00419868]
[1731847296012,0.110059,90860.0,90853.0,0.00419868]
[1731847297150,0.110061,90859.0,90853.0,0.00419868]
[1731847297367,0.220111,90863.0,90853.0,0.00419868]
[1731847297368,0.110066,90854.0,90853.0,0.00419868]
[1731847297579,0.110066,90855.0,90846.0,0.110076]
[1731847297809,0.110066,90855.0,90854.0,0.00419346]
[1731847298069,0.110066,90855.0,90847.0,0.110074]
[1731847298264,0.1303566,90866.0,90844.0,0.023]
[1731847298487,0.1303566,90866.0,90848.0,0.00419571]
[1731847298488,0.110064,90856.0,90848.0,0.00419571]
[1731847298938,0.220118,90861.0,90848.0,0.00419571]
[1731847299170,0.220121,90859.0,90848.0,0.00419571]
[1731847299398,0.0543566,90866.0,90848.0,0.00419571]
[1731847299829,0.110065,90855.0,90849.0,0.00492275]
[1731847300263,0.110065,90855.0,90847.0,0.110075]
[1731847300500,0.220115,90862.0,90850.0,0.00490621]
[1731847300775,0.0543566,90866.0,90847.0,0.110075]
[1731847300776,0.110065,90856.0,90847.0,0.110075]
[1731847301006,0.110065,90856.0,90851.0,0.00491448]
[1731847301239,0.110065,90856.0,90846.0,0.110075]
[1731847301709,0.110065,90856.0,90848.0,0.110073]
[1731847301938,0.110065,90856.0,90847.0,0.00463869]
[1731847302172,0.110065,90856.0,90849.0,0.00463594]
[1731847302382,0.110065,90856.0,90844.0,0.220157]
[1731847302383,0.110066,90855.0,90848.0,0.00463606]
[1731847302584,0.110066,90855.0,90846.0,0.110076]
[1731847302792,0.0455,90864.0,90849.0,0.00464346]
[1731847303020,0.110071,90850.0,90849.0,0.00464346]
[1731847303232,0.22013,90856.0,90843.0,0.110079]
[1731847303460,0.22013,90856.0,90849.0,0.00463657]
[1731847303676,0.22013,90855.0,90842.0,0.0463]
[1731847303904,0.110071,90850.0,90842.0,0.15638]
[1731847304368,0.110071,90850.0,90842.0,0.0463]
[1731847304623,0.22013,90855.0,90842.0,0.0463]
[1731847304839,0.10906255,90858.0,90842.0,0.0463]
[1731847304840,0.110074,90848.0,90842.0,0.0463]
[1731847305279,0.220128,90856.0,90842.0,0.0463]
[1731847305280,0.110073,90849.0,90842.0,0.0463]
[1731847305716,0.330215,90850.0,90842.0,0.0463]
[1731847306157,0.220143,90850.0,90842.0,0.0463]
[1731847306362,0.110072,90850.0,90842.0,0.0463]
[1731847306574,0.110075,90847.0,90842.0,0.0463]
[1731847306787,0.110071,90850.0,90842.0,0.0463]
[1731847307482,0.110067,90854.0,90845.0,0.110076]
[1731847307699,0.2209623,90866.0,90844.0,0.0751]
[1731847307700,0.03611001,90864.0,90844.0,0.0751]
[1731847307925,0.2752777,90856.0,90848.0,0.110073]
[1731847308168,0.110064,90856.0,90848.0,0.110073]
[1731847308606,0.110062,90858.0,90846.0,0.220152]
[1731847308845,0.2209623,90866.0,90861.0,0.110057]
[1731847308846,0.0008563,90866.0,90861.0,0.110057]
[1731847309056,0.0008563,90866.0,90862.0,0.0484]
[1731847309277,0.0008563,90866.0,90862.0,0.05302762]
[1731847309933,0.0008563,90866.0,90865.0,0.185153]
[1731847310383,0.0008563,90866.0,90865.0,0.18977648]
[1731847311257,0.0008563,90866.0,90865.0,0.00462348]
[1731847311258,0.15531885,90866.0,90865.0,0.00462348]
[1731847311510,0.30197085,90866.0,90865.0,0.00462348]
[1731847311735,0.30197085,90866.0,90848.0,0.2752857]
[1731847311736,0.220111,90864.0,90848.0,0.2752857]
[1731847311970,0.110061,90859.0,90848.0,0.1652137]
[1731847312187,0.110058,90861.0,90849.0,0.00464278]
[1731847312611,0.110058,90862.0,90850.0,0.11007]
[1731847312819,0.220111,90864.0,90849.0,0.00464278]
[1731847313026,0.110058,90861.0,90850.0,0.00463727]
[1731847313441,0.220111,90863.0,90850.0,0.00463727]
[1731847313677,0.1652137,90865.0,90850.0,0.00463727]
[1731847314106,0.110061,90859.0,90850.0,0.00463727]
[1731847314531,0.110061,90859.0,90848.0,0.1652137]
[1731847314751,0.110062,90858.0,90851.0,0.00463313]
[1731847314974,0.11006,90860.0,90849.0,0.00463589]
[1731847315188,0.11006,90859.0,90848.0,0.2752867]
[1731847315403,0.11006,90859.0,90850.0,0.00463589]
[1731847315617,0.110057,90862.0,90850.0,0.11470589]
[1731847315859,0.110057,90862.0,90851.0,0.00463313]
[1731847316080,0.110057,90862.0,90848.0,0.1652137]
[1731847316081,0.220109,90864.0,90850.0,0.11007]
[1731847316310,0.110058,90861.0,90852.0,0.00463589]
[1731847316511,0.110058,90861.0,90851.0,0.00464002]
[1731847316719,0.110058,90861.0,90853.0,0.00463313]
[1731847316925,0.110058,90861.0,90852.0,0.00463451]
[1731847317142,0.220109,90864.0,90854.0,0.00463175]
[1731847317361,0.110058,90862.0,90853.0,0.00463313]
[1731847317583,0.220109,90864.0,90855.0,0.00463451]
[1731847317787,0.110058,90861.0,90854.0,0.00463313]
[1731847318010,0.110058,90861.0,90850.0,0.110071]
[1731847318214,0.0008565,90863.0,90855.0,0.0046259]
[1731847318426,0.110059,90860.0,90849.0,0.110071]
[1731847318671,0.110059,90860.0,90856.0,0.00462728]
[1731847318876,0.110059,90860.0,90850.0,0.110071]
[1731847319104,0.110059,90860.0,90857.0,0.00462177]
[1731847319308,0.110059,90860.0,90849.0,0.110071]
[1731847319526,0.0008565,90863.0,90848.0,0.1652137]
[1731847319527,0.110059,90861.0,90850.0,0.11007]
[1731847319753,0.1109125,90863.0,90851.0,0.11007]
[1731847320007,0.220114,90862.0,90850.0,0.00463176]
[1731847320209,0.11006,90860.0,90852.0,0.00463313]
[1731847320417,0.11006,90860.0,90849.0,0.110072]
[1731847320623,0.11006,90860.0,90853.0,0.00462762]
[1731847320829,0.11006,90860.0,90849.0,0.110072]
[1731847321052,0.11006,90860.0,90854.0,0.00462624]
[1731847321270,0.110057,90862.0,90851.0,0.11007]
[1731847321480,0.110059,90861.0,90855.0,0.00462486]
[1731847321692,0.0008565,90863.0,90848.0,0.1652137]
[1731847321903,0.0008565,90863.0,90855.0,0.110064]
[1731847322387,0.0008565,90863.0,90859.0,0.11006]
[1731847323017,0.0008565,90863.0,90860.0,0.11468111]
[1731847323246,0.0008565,90863.0,90860.0,0.22474011]
[1731847323448,0.0008565,90863.0,90862.0,0.110057]
[1731847323678,0.0008565,90863.0,90862.0,0.156657]
[1731847323925,0.0008565,90863.0,90862.0,0.16127635]
[1731847324352,0.0008565,90863.0,90862.0,0.1634773]
[1731847325013,0.0008565,90863.0,90862.0,0.37128157]
[1731847325291,0.0008565,90863.0,90862.0,0.44988062]
[1731847325472,0.0008565,90863.0,90862.0,0.50425148]
[1731847325682,0.0008565,90863.0,90862.0,0.3561389]
[1731847327766,0.0008565,90863.0,90862.0,0.6443526]
[1731847328001,0.0008565,90863.0,90862.0,0.4861389]
[1731847328432,0.0909265,90878.0,90877.0,0.244438]
[1731847328672,0.0909265,90878.0,90877.0,0.35350055]
[1731847328883,0.1652137,90891.0,90890.0,0.110023]
[1731847329379,0.1652137,90902.0,90891.0,0.110021]
[1731847330019,0.1652137,90902.0,90891.0,0.11411015]
[1731847331577,0.1652137,90902.0,90891.0,0.00408915]
[1731847331578,0.110015,90897.0,90891.0,0.00408915]
[1731847331789,0.110012,90899.0,90891.0,0.00408915]
[1731847332010,0.110025,90889.0,90878.0,0.110037]
[1731847332243,0.110025,90889.0,90879.0,0.2752497]
[1731847332460,0.22004,90893.0,90879.0,0.1652137]
[1731847332670,0.1108776,90892.0,90881.0,0.110033]
[1731847333170,0.110021,90891.0,90881.0,0.110033]
[1731847333414,0.110021,90891.0,90879.0,0.2752487]
[1731847333629,0.110023,90890.0,90880.0,0.110034]
[1731847333853,0.1652137,90891.0,90873.0,0.110043]
[1731847334064,0.110033,90882.0,90871.0,0.110045]
[1731847334242,0.220049,90889.0,90873.0,0.110043]
[1731847334487,0.1652137,90888.0,90868.0,0.1652137]
[1731847334725,0.1652137,90888.0,90868.0,0.20995096]
[1731847334948,0.110032,90883.0,90872.0,0.110044]
[1731847335681,0.110032,90883.0,90873.0,0.00409413]
[1731847336383,0.11003,90885.0,90874.0,0.110042]
[1731847336605,0.11003,90884.0,90874.0,0.110042]
[1731847337090,0.110032,90883.0,90875.0,0.00409413]
[1731847337322,0.110032,90883.0,90872.0,0.110043]
[1731847337812,0.110032,90883.0,90873.0,0.11413613]
[1731847338299,0.110032,90883.0,90874.0,0.110042]
[1731847338510,0.110032,90883.0,90874.0,0.00409289]
[1731847338929,0.110032,90883.0,90872.0,0.110044]
[1731847339145,0.110032,90883.0,90875.0,0.00409165]
[1731847339445,0.220055,90886.0,90874.0,0.110042]
[1731847339446,0.110029,90885.0,90874.0,0.110042]
[1731847339461,0.110029,90885.0,90876.0,0.00409042]
[1731847339675,0.110029,90885.0,90874.0,0.110042]
[1731847339676,0.220055,90886.0,90874.0,0.110042]
[1731847339880,0.110031,90883.0,90877.0,0.00409165]
[1731847340106,0.110031,90883.0,90874.0,0.110042]
[1731847340107,0.0008564,90894.0,90879.0,0.1652137]
[1731847340348,0.0008564,90894.0,90891.0,0.110021]
[1731847340782,0.0008564,90894.0,90891.0,0.00370934]
[1731847341006,0.0008564,90894.0,90890.0,0.110022]
[1731847341211,0.0008564,90894.0,90891.0,0.00370934]
[1731847341445,0.0008564,90894.0,90890.0,0.110022]
[1731847341659,0.0008564,90894.0,90891.0,0.110021]
[1731847341869,0.0008564,90894.0,90891.0,0.11410127]
[1731847343425,0.0017142,90908.0,90891.0,0.00408027]
[1731847343633,0.0017142,90908.0,90885.0,0.06583621]
[1731847343634,0.0017142,90908.0,90907.0,0.110002]
[1731847344046,0.0017142,90908.0,90907.0,0.11408227]
[1731847355439,0.0017142,90908.0,90907.0,0.16008227]
[1731847356286,0.0017142,90908.0,90907.0,0.00408027]
[1731847356709,0.0017142,90908.0,90900.0,0.11001]
[1731847356921,0.110003,90907.0,90895.0,0.1652137]
[1731847357124,0.110002,90907.0,90898.0,0.110013]
[1731847357328,0.110002,90907.0,90893.0,0.220038]
[1731847357329,0.0017142,90908.0,90899.0,0.110011]
[1731847357560,0.0017142,90908.0,90890.0,0.220044]
[1731847357772,0.0017142,90908.0,90891.0,0.1652137]
[1731847357982,0.110008,90902.0,90893.0,0.110019]
[1731847358188,0.220007,90906.0,90893.0,0.110019]
[1731847358189,0.11001,90901.0,90893.0,0.110019]
[1731847358400,0.220009,90905.0,90886.0,0.220054]
[1731847358401,0.1652137,90905.0,90886.0,0.220054]
[1731847358617,0.04727203,90908.0,90891.0,0.1652137]
[1731847358836,0.110009,90901.0,90893.0,0.110019]
[1731847359059,0.110008,90903.0,90893.0,0.110019]
[1731847359494,0.110009,90902.0,90893.0,0.110019]
[1731847361251,0.220012,90904.0,90893.0,0.110019]
[1731847361458,0.110009,90902.0,90893.0,0.110019]
[1731847361659,0.04727203,90908.0,90893.0,0.220037]
[1731847361875,0.1652137,90907.0,90902.0,0.110008]
[1731847362401,0.04727203,90908.0,90884.0,0.22006]
[1731847362402,0.0017142,90908.0,90903.0,0.110006]
[1731847362610,0.0017142,90908.0,90884.0,0.22006]
[1731847362611,0.0017142,90908.0,90907.0,0.110002]
[1731847362827,0.0017142,90908.0,90907.0,0.11449138]
[1731847363486,0.0017142,90908.0,90907.0,0.22575383]
[1731847364624,0.0017142,90908.0,90907.0,0.22355393]
[1731847366169,0.0017142,90908.0,90907.0,0.25155393]
[1731847366389,0.0017142,90908.0,90907.0,0.25355393]
[1731847367029,0.0017142,90908.0,90907.0,0.30335393]
[1731847368301,0.0017142,90908.0,90907.0,0.40159325]
[1731847368554,0.0008563,90914.0,90912.0,0.137996]
[1731847368762,0.0008563,90914.0,90912.0,0.24705855]
[1731847368982,0.0008563,90914.0,90912.0,0.25149824]
[1731847370530,0.0008563,90914.0,90912.0,0.25349824]
[1731847370743,0.0008563,90914.0,90912.0,0.33019824]
[1731847371378,0.0008563,90914.0,90912.0,0.08445595]
[1731847371836,0.0008563,90914.0,90912.0,0.19445195]
[1731847373195,0.0008563,90914.0,90912.0,0.19245195]
[1731847373397,0.0917826,90929.0,90914.0,0.219988]
[1731847373611,0.0917826,90929.0,90920.0,0.109985]
[1731847373787,0.0917826,90929.0,90920.0,0.109986]
[1731847374027,0.109974,90931.0,90921.0,0.11418926]
[1731847374237,0.005,90932.0,90922.0,0.109983]
[1731847374629,0.005,90932.0,90924.0,0.10998]
[1731847374831,0.005,90932.0,90923.0,0.00473134]
[1731847374964,0.191679,90926.0,90925.0,0.00420289]
[1731847375164,0.191679,90926.0,90909.0,0.219998]
[1731847375165,0.11498,90925.0,90924.0,0.0047298]
[1731847375505,0.114985,90922.0,90917.0,0.1652137]
[1731847375714,0.114984,90922.0,90917.0,0.1652137]
[1731847376038,0.005,90922.0,90918.0,0.0047236]
[1731847376381,0.219963,90925.0,90895.0,0.14538141]
[1731847376382,0.005,90921.0,90908.0,0.11]
[1731847376587,0.109986,90920.0,90903.0,0.220014]
[1731847376789,0.109986,90920.0,90904.0,0.20176479]
[1731847376995,0.005,90921.0,90905.0,0.0042139]
[1731847377193,0.114986,90921.0,90909.0,0.109999]
[1731847377496,0.114986,90921.0,90904.0,0.20176479]
[1731847377497,0.005,90921.0,90911.0,0.109996]
[1731847377924,0.005,90921.0,90912.0,0.00473135]
[1731847378315,0.114995,90913.0,90912.0,0.00473135]
[1731847378537,0.005,90913.0,90905.0,0.1652137]
[1731847379109,0.005,90913.0,90906.0,0.00472825]
[1731847380239,0.005,90911.0,90906.0,0.00472825]
[1731847380482,0.005,90911.0,90901.0,0.03759072]
[1731847380935,0.005,90911.0,90903.0,0.110006]
[1731847381371,0.005,90911.0,90904.0,0.11473938]
[1731847382121,0.005,90911.0,90905.0,0.110004]
[1731847382525,0.005,90911.0,90906.0,0.00473028]
[1731847382739,0.005,90913.0,90906.0,0.00473028]
[1731847382954,0.005,90914.0,90910.0,0.109998]
[1731847383330,0.005,90914.0,90911.0,0.00472758]
[1731847383916,0.005,90915.0,90912.0,0.109996]
[1731847384141,0.005,90915.0,90912.0,0.11472204]
[1731847384801,0.005,90915.0,90912.0,0.00472604]
[1731847385240,0.005,90915.0,90910.0,0.109998]
[1731847385486,0.005,90914.0,90908.0,0.11]
[1731847385695,0.005,90914.0,90911.0,0.00472913]
[1731847385882,0.005,90914.0,90909.0,0.109999]
[1731847386099,0.005,90914.0,90912.0,0.00472604]
[1731847386317,0.005,90914.0,90909.0,0.109999]
[1731847386541,0.005,90914.0,90913.0,0.00472449]
[1731847386751,0.005,90914.0,90909.0,0.109999]
[1731847386894,0.005,90914.0,90913.0,0.00472449]
[1731847387107,0.005,90914.0,90901.0,0.13580944]
[1731847387108,0.114994,90914.0,90903.0,0.110006]
[1731847387306,0.005,90914.0,90913.0,0.0047207]
[1731847387529,0.005,90914.0,90905.0,0.110004]
[1731847387530,0.005,90914.0,90906.0,0.110003]
[1731847387944,0.005,90914.0,90907.0,0.00473]
[1731847388345,0.32903055,90922.0,90907.0,0.00473]
[1731847388544,0.109989,90918.0,90907.0,0.00473]
[1731847389806,0.10999,90917.0,90907.0,0.00473]
[1731847389957,0.10999,90917.0,90907.0,0.11350786]
[1731847391054,0.1652137,90919.0,90907.0,0.00350586]
[1731847391201,0.110001,90908.0,90907.0,0.00350586]
[1731847391399,0.110004,90906.0,90904.0,0.0017114]
[1731847391601,0.109996,90913.0,90905.0,0.1652137]
[1731847391802,0.109996,90913.0,90904.0,0.0017114]
[1731847391803,0.109997,90912.0,90904.0,0.0017114]
[1731847392001,0.109997,90912.0,90906.0,0.00351382]
[1731847392202,0.109998,90910.0,90905.0,0.00351279]
[1731847392411,0.109997,90911.0,90904.0,0.0017114]
[1731847392873,0.109999,90910.0,90904.0,0.0017114]
[1731847393046,0.10906255,90917.0,90904.0,0.0017114]
[1731847393244,0.109999,90910.0,90904.0,0.0017114]
[1731847393446,0.10906255,90917.0,90905.0,0.00351054]
[1731847393656,0.11,90909.0,90904.0,0.0017114]
[1731847393826,0.10906255,90917.0,90904.0,0.0017114]
[1731847394032,0.109999,90910.0,90904.0,0.0017114]
[1731847394245,0.109999,90910.0,90905.0,0.00429549]
[1731847394879,0.109999,90910.0,90908.0,0.02170087]
[1731847396338,0.109996,90912.0,90908.0,0.02170087]
[1731847396752,0.109998,90911.0,90908.0,0.02170087]
[1731847397389,0.109999,90910.0,90908.0,0.02170087]
[1731847397599,0.11,90909.0,90908.0,0.02170087]
[1731847401459,0.110003,90907.0,90904.0,0.0017114]
[1731847402316,0.110004,90905.0,90904.0,0.0017114]
[1731847402521,0.220007,90907.0,90904.0,0.0017114]
[1731847402714,0.110004,90906.0,90904.0,0.0017114]
[1731847403361,0.219993,90912.0,90904.0,0.0017114]
[1731847403553,0.110001,90908.0,90904.0,0.0017114]
[1731847404063,0.23366255,90907.0,90904.0,0.0017114]
[1731847404242,0.18526255,90914.0,90904.0,0.0017114]
[1731847404449,0.109996,90912.0,90904.0,0.0017114]
[1731847404660,0.110001,90908.0,90904.0,0.0017114]
[1731847404861,0.219992,90912.0,90904.0,0.0017114]
[1731847405063,0.219995,90911.0,90904.0,0.0017114]
[1731847405215,0.20906255,90913.0,90904.0,0.0017114]
[1731847405445,0.109996,90912.0,90904.0,0.0017114]
[1731847405641,0.219992,90912.0,90904.0,0.0017114]
[1731847405843,0.109999,90910.0,90904.0,0.0017114]
[1731847406106,0.20906255,90913.0,90904.0,0.0017114]
[1731847406310,0.109998,90911.0,90904.0,0.0017114]
[1731847406532,0.20906255,90913.0,90904.0,0.0017114]
[1731847406671,0.31905755,90913.0,90904.0,0.0017114]
[1731847406872,0.20906255,90913.0,90904.0,0.0017114]
[1731847407277,0.20906255,90913.0,90905.0,0.0043028]
[1731847407278,0.31905755,90913.0,90905.0,0.0043028]
[1731847407446,0.35533608,90913.0,90904.0,0.0017114]
[1731847407688,0.24534108,90913.0,90904.0,0.0017114]
[1731847408173,0.24534108,90913.0,90905.0,0.0043028]
[1731847408404,0.0762,90920.0,90905.0,0.0043028]
[1731847408405,0.224955,90928.0,90905.0,0.220009]
[1731847408622,0.1,90921.0,90906.0,0.00430143]
[1731847408842,0.21904855,90921.0,90909.0,0.109998]
[1731847409072,0.109987,90920.0,90910.0,0.00430693]
[1731847409774,0.03650351,90923.0,90913.0,0.1652137]
[1731847409998,0.0008557,90929.0,90922.0,0.109983]
[1731847410227,0.03601399,90929.0,90923.0,0.00429162]
[1731847410469,0.03601399,90929.0,90922.0,0.109984]
[1731847410692,0.03601399,90929.0,90920.0,0.219972]
[1731847410693,0.03601399,90929.0,90923.0,0.109982]
[1731847410905,0.03601399,90929.0,90923.0,0.11426272]
[1731847411123,0.03601399,90929.0,90924.0,0.109981]
[1731847411328,0.03601399,90929.0,90924.0,0.00427934]